Departmental Family,Entity,Date,Expense Type,Expense Area,Supplier,Transaction Number,Amount,Description 
Cabinet Office,CABINET OFFICE,06/10/14,FM CONTRACT FIXED COSTS,PMO FACILITIES MANAGEMENT,BOUYGUES E&S FM UK LTD,3000053109,26723.04,Facilities Management Services ,,,,,,,,,,,,,,,,,,,,,, 
Cabinet Office,CABINET OFFICE,13/10/2014,FM CONTRACT VARIABLE, MODERNISATION NO 10 ,BOUYGUES E&S FM UK LTD,3000053332,50000.00,Facilities Management Services 
Cabinet Office,CABINET OFFICE,16/10/14,FACILITIES SERVICES, MODERNISATION NO 10 ,BOUYGUES E&S FM UK LTD,3000053455,32362.44,Estate services
Cabinet Office,CABINET OFFICE,16/10/2014,ADDITIONSAUC F/H NON RES BLDGS,MODERNISATION PROGRAMME,BOUYGUES E&S FM UK LTD,3000053455,64809.37,Estate services
Cabinet Office,CABINET OFFICE,16/10/2014,OTHER TRAVEL COSTS,OVERSEAS MISSIONS,HOGG ROBINSON TRAVEL LTD,3000053466,66756.27,Official travel
Cabinet Office,CABINET OFFICE,16/10/2014,OTHER TRAVEL COSTS,HOME VISITS,HOGG ROBINSON TRAVEL LTD,3000053466,94937.18,Official travel
Cabinet Office,CABINET OFFICE,17/10/2014,GRANT IN AID PRIVATE SECTOR,GRANT PAYMENTS,THE CHEQUERS ESTATE,1001109,173750.00,Chequers Grant in aid
Cabinet Office,CABINET OFFICE,20/10/2014,FM CONTRACT VARIABLE, MODERNISATION NO 10 ,BOUYGUES E&S FM UK LTD,3000053580,62891.89,Estate services 
Cabinet Office,CABINET OFFICE,23/10/14,ADDITIONS IT HARDWARE,ICT CAPITAL PROJECTS 201213,COMPUTACENTER UK LTD,3000053658,26928.15,IT hardware
Cabinet Office,CABINET OFFICE,07/10/14,CONTRACTORS & STAFF SUBSTITUTIONS,ERG ASSURANCE REVIEWS,CAPITA BUSINESS SERVICES LTD,3000053133,38616.74,Interim staff costs to support Major Project Gateway Reviews
Cabinet Office,CABINET OFFICE,07/10/2014,CONSULTANTS VAT RECOVERABLE,ERG MAJOR PROJECTS TEAM,CAPITA BUSINESS SERVICES LTD,3000053133,53966.70,Interim staff costs to support Major Project Gateway Reviews
Cabinet Office,CABINET OFFICE,08/10/2014,PROFESSIONAL ADVICE & OPINION VAT RECOVERABLE,NEXT GENERATION HR COSTS,HOME OFFICE,3000053209,476530.80,Civil Service Learning and Civil Service Organisation Development and Design costs for 2014-15 
Cabinet Office,CABINET OFFICE,02/10/14,CONSULTANTS VAT RECOVERABLE,MUTUALS,MUTUAL VENTURES,3000053032,28531.25,Support under the mutuals support programme 
Cabinet Office,CABINET OFFICE,02/10/14,CONSULTANTS VAT RECOVERABLE,MUTUALS,HEMPSONS SOLICITORS,3000053024,37816.55,Support and legal services for mutuals 
Cabinet Office,CABINET OFFICE,06/10/2014,CONSULTANTS VAT RECOVERABLE,ERG FRAUD ERROR AND DEBT,ATKINS LTD,3000053119,53670.80,Digital Feasibility Study grant
Cabinet Office,CABINET OFFICE,07/10/14,OTHER LEGAL FEES,ERG COMMERCIAL PORTFOLIO TEAM,DLA PIPER UK,3000053166,45651.30,Legal services 
Cabinet Office,CABINET OFFICE,07/10/2014,CONTRACTORS & STAFF SUBSTITUTIONS,ERG NEXT GENERATION SHARED SERVICES,CAPITA BUSINESS SERVICES LTD,3000053133,61130.52,"Interim Staff costs to support the Next Generation Shared Service's 'Single Operating Platform' Project, to deliver a new single platform for Government Departments' finance and HR transactions"
Cabinet Office,CABINET OFFICE,07/10/2014,CONSULTANTS VAT RECOVERABLE,ERG NEXT GENERATION SHARED SERVICES,PRICEWATERHOUSE COOPERS LLP,3000053136,78993.00,Reprographic Services 
Cabinet Office,CABINET OFFICE,13/10/2014,CONTRACTORS & STAFF SUBSTITUTIONS,ERG NEXT GENERATION SHARED SERVICES,CAPITA RESOURCING LTD,3000053336,49672.07,Payment for interim staff working on GDS projects
Cabinet Office,CABINET OFFICE,15/10/2014,OTHER LEGAL FEES,ERG DEBT MARKET INTEGRATOR,DLA PIPER UK,3000053426,61277.00,Managed services for the GDS transformation project
Cabinet Office,CABINET OFFICE,23/10/14,CONSULTANTS VAT RECOVERABLE,MUTUALS,MUTUAL VENTURES,3000053683,36103.04,Support and legal services for mutuals 
Cabinet Office,CABINET OFFICE,23/10/14,OTHER LEGAL FEES,ERG COMMERCIAL PORTFOLIO TEAM,HERBERT SMITH LLP,3000053671,39970.65,Legal services 
Cabinet Office,CABINET OFFICE,24/10/14,CONSULTANTS VAT RECOVERABLE,ERG FRAUD ERROR AND DEBT,IPSOS MORI LTD,3000053780,28488.00,Business Case Researchers grant 
Cabinet Office,CABINET OFFICE,31/10/2014,OTHER LEGAL FEES,ERG DEBT MARKET INTEGRATOR,FIELD FISHER WATERHOUSE LLP,3000054003,67217.50,Managed services for the GDS transformation project
Cabinet Office,CABINET OFFICE,31/10/2014,OTHER LEGAL FEES,ERG DEBT MARKET INTEGRATOR,FIELD FISHER WATERHOUSE LLP,3000053982,180774.10,Rent for accommodation
Cabinet Office,CABINET OFFICE,10/10/2014,CONTRACTORS & STAFF SUBSTITUTIONS,ERG COMMERCIAL REVIEW,CAPITA RESOURCING LTD,3000053271,31671,Payment for Interim procurement specialists 
Cabinet Office,CABINET OFFICE,02/10/2014,OTHER IS IT COSTS VAT RECOV,GDS PUBLISHING PLATFORM TECHNOLOGY,UNBOXED CONSULTING LTD,3000053044,31880,Managed Services for GOV.UK
Cabinet Office,CABINET OFFICE,02/10/2014,OTHER IS IT COSTS VAT RECOV,GDS TRANSFORMATION,WTG TECHNOLOGIES LTD,3000053039,53770.00,Managed services for the GDS transformation project
Cabinet Office,CABINET OFFICE,02/10/2014,OTHER IS IT COSTS VAT RECOV,GDS TRANSFORMATION,PARITY RESOURCES LTD,3000053055,114619.16,Payment for interim staff working on GDS projects
Cabinet Office,CABINET OFFICE,02/10/2014,OTHER IS IT COSTS VAT RECOV,GDS TRANSFORMATION,VALTECH LTD,3000053038,263310.00,Managed services for the GDS transformation project
Cabinet Office,CABINET OFFICE,07/10/14,CONTRACTORS & STAFF SUBSTITUTIONS,PUBLIC SERVICES NETWORK,CAPITA RESOURCING LTD,3000053140,25630.80,Payment for interim Digital/IT specialists
Cabinet Office,CABINET OFFICE,07/10/14,CONTRACTORS & STAFF SUBSTITUTIONS,GDS COMMUNICATIONS AND CREATIVE,CAPITA BUSINESS SERVICES LTD,3000053133,27584.67,Payment for interim Digital/IT specialists
Cabinet Office,CABINET OFFICE,07/10/14,CONTRACTORS & STAFF SUBSTITUTIONS,PUBLIC SERVICES NETWORK,CAPITA RESOURCING LTD,3000053155,28541.94,Payment for interim Digital/IT specialists
Cabinet Office,CABINET OFFICE,07/10/14,CONTRACTORS & STAFF SUBSTITUTIONS,GDS PUBLISHING PLATFORM TECHNOLOGY,MICHAEL PAGE INTERNATIONAL RECRUITMENT LTD,3000053163,28665.94,Payment for interim Digital/IT specialists
Cabinet Office,CABINET OFFICE,07/10/2014,OTHER IS IT COSTS VAT RECOV,GDS ID ASSURANCE,OPEN IDENTITY EXCHANGE,2000538,31180,Identity Assurance Programme support grant
Cabinet Office,CABINET OFFICE,07/10/14,OTHER IS IT COSTS VAT RECOV,GDS PUBLISHING PLATFORM TECHNOLOGY,GITHUB INC,2000539,32598.78,GOV.UK software enhancement
Cabinet Office,CABINET OFFICE,07/10/14,CONTRACTORS & STAFF SUBSTITUTIONS,GDS PEOPLE AND SKILLS,CAPITA BUSINESS SERVICES LTD,3000053133,39646.14,Payment for interim Digital/IT specialists
Cabinet Office,CABINET OFFICE,07/10/2014,OTHER IS IT COSTS VAT RECOV,GDS ID ASSURANCE,SKYSCAPE CLOUD SERVICES LTD,3000053167,62818.29,Hosting Services for the Identity Assurance hub
Cabinet Office,CABINET OFFICE,07/10/2014,CONTRACTORS & STAFF SUBSTITUTIONS,GDS ID ASSURANCE,CAPITA BUSINESS SERVICES LTD,3000053133,78251.81,Payment for interim Digital/IT specialists
Cabinet Office,CABINET OFFICE,07/10/2014,CONTRACTORS & STAFF SUBSTITUTIONS,CO IT SYSTEMS,CAPITA BUSINESS SERVICES LTD,3000053133,79518.26,Payment for interim staff working on GDS projects
Cabinet Office,CABINET OFFICE,07/10/2014,CONTRACTORS & STAFF SUBSTITUTIONS,GDS OFFICE OF CHIEF TECHNOLOGY OFFICER,CAPITA BUSINESS SERVICES LTD,3000053133,90586.79,Payment for interim staff working on GDS projects
Cabinet Office,CABINET OFFICE,07/10/2014,CONTRACTORS & STAFF SUBSTITUTIONS,G CLOUD,CAPITA BUSINESS SERVICES LTD,3000053133,94458.22,Payment for interim staff working on GDS projects
Cabinet Office,CABINET OFFICE,07/10/2014,CONTRACTORS & STAFF SUBSTITUTIONS,GDS PUBLISHING PLATFORM TECHNOLOGY,CAPITA BUSINESS SERVICES LTD,3000053133,109264.92,Payment for interim staff working on GDS projects
Cabinet Office,CABINET OFFICE,07/10/2014,CONTRACTORS & STAFF SUBSTITUTIONS,PUBLIC SERVICES NETWORK,CAPITA BUSINESS SERVICES LTD,3000053133,124603.11,�Payment for interim Digital/IT specialists
Cabinet Office,CABINET OFFICE,07/10/2014,CONTRACTORS & STAFF SUBSTITUTIONS,GDS TRANSFORMATION,CAPITA BUSINESS SERVICES LTD,3000053133,137339.40,Payment for interim staff working on GDS projects
Cabinet Office,CABINET OFFICE,07/10/2014,RESOURCE GRANTS PRIVATE SECTOR,GDS ID ASSURANCE,OPEN IDENTITY EXCHANGE,2000537,155900.00,Identity Assurance Programme support grant
Cabinet Office,CABINET OFFICE,07/10/2014,CONTRACTORS & STAFF SUBSTITUTIONS,GDS BUS DEV CONSULTANT AND STAFF COSTS,CAPITA BUSINESS SERVICES LTD,3000053133,191957.53,Vetting Fees
Cabinet Office,CABINET OFFICE,08/10/2014,CONTRACTORS & STAFF SUBSTITUTIONS,G CLOUD,CAPITA RESOURCING LTD,3000053205,50549.59,Payment for interim staff working on GDS projects
Cabinet Office,CABINET OFFICE,08/10/2014,CONTRACTORS & STAFF SUBSTITUTIONS,GDS PERFORMANCE AND DELIVERY,CAPITA RESOURCING LTD,3000053205,72471.53,Payment for interim staff working on GDS projects
Cabinet Office,CABINET OFFICE,08/10/2014,CONTRACTORS & STAFF SUBSTITUTIONS,GDS TRANSFORMATION,CAPITA RESOURCING LTD,3000053205,112211.68,Payment for interim staff working on GDS projects
Cabinet Office,CABINET OFFICE,08/10/2014,CONTRACTORS & STAFF SUBSTITUTIONS,GDS OFFICE OF CHIEF TECHNOLOGY OFFICER,CAPITA RESOURCING LTD,3000053205,116196.23,�Payment for interim Digital/IT specialists
Cabinet Office,CABINET OFFICE,08/10/2014,CONTRACTORS & STAFF SUBSTITUTIONS,GDS ID ASSURANCE,CAPITA RESOURCING LTD,3000053205,159293.13,�Payment for interim Digital/IT specialists
Cabinet Office,CABINET OFFICE,08/10/2014,CONTRACTORS & STAFF SUBSTITUTIONS,GDS BUS DEV CONSULTANT AND STAFF COSTS,CAPITA RESOURCING LTD,3000053205,227185.07,Payment for interim staff working on GDS projects
Cabinet Office,CABINET OFFICE,08/10/2014,CONTRACTORS & STAFF SUBSTITUTIONS,GDS PUBLISHING PLATFORM TECHNOLOGY,CAPITA RESOURCING LTD,3000053205,245721.82,Payment for interim staff working on GDS projects
Cabinet Office,CABINET OFFICE,08/10/2014,CONTRACTORS & STAFF SUBSTITUTIONS,PUBLIC SERVICES NETWORK,CAPITA RESOURCING LTD,3000053205,259529.82,�Payment for interim Digital/IT specialists
Cabinet Office,CABINET OFFICE,09/10/2014,OTHER IS IT COSTS VAT RECOV, GDS ID ASSURANCE ,QINETIQ LTD,3000053239,51457.60,Software for secure IT systems
Cabinet Office,CABINET OFFICE,09/10/2014,CONTRACTORS & STAFF SUBSTITUTIONS,GDS BUS DEV CONSULTANT AND STAFF COSTS,CAPITA RESOURCING LTD,3000053254,61642.59,Payment for interim staff working on GDS projects
Cabinet Office,CABINET OFFICE,09/10/2014,CONTRACTORS & STAFF SUBSTITUTIONS,GDS TRANSFORMATION,CAPITA RESOURCING LTD,3000053254,121203.41,Payment for interim staff working on GDS projects
Cabinet Office,CABINET OFFICE,10/10/14,CONTRACTORS & STAFF SUBSTITUTIONS,GDS PUBLISHING PLATFORM TECHNOLOGY,CAPITA RESOURCING LTD,3000053271,28516.34,Payment for interim staff working on GDS projects
Cabinet Office,CABINET OFFICE,10/10/14,CONTRACTORS & STAFF SUBSTITUTIONS,GDS ID ASSURANCE,CAPITA RESOURCING LTD,3000053271,28690.21,�Payment for interim Digital/IT specialists
Cabinet Office,CABINET OFFICE,10/10/14,CONTRACTORS & STAFF SUBSTITUTIONS,GDS TRANSFORMATION,CAPITA RESOURCING LTD,3000053271,32558.16,Payment for interim staff working on GDS projects
Cabinet Office,CABINET OFFICE,10/10/14,CONTRACTORS & STAFF SUBSTITUTIONS,GDS COMMUNICATIONS AND CREATIVE,CAPITA RESOURCING LTD,3000053271,34341.30,Payment for interim Digital/IT specialists
Cabinet Office,CABINET OFFICE,10/10/2014,CONTRACTORS & STAFF SUBSTITUTIONS,PUBLIC SERVICES NETWORK,CAPITA RESOURCING LTD,3000053271,63376.14,Payment for interim Digital/IT specialists
Cabinet Office,CABINET OFFICE,10/10/2014,OTHER IS IT COSTS VAT RECOV,GDS PUBLISHING PLATFORM TECHNOLOGY,SKYSCAPE CLOUD SERVICES LTD,3000053277,220673.72,Hosting costs for GOV.UK
Cabinet Office,CABINET OFFICE,13/10/14,OTHER IS IT COSTS VAT RECOV,GDS OFFICE OF CHIEF TECHNOLOGY OFFICER,BRAMBLE CC LTD,3000053320,27689.30,Managed services to support Government Digital Services Projects
Cabinet Office,CABINET OFFICE,13/10/2014,CONTRACTORS & STAFF SUBSTITUTIONS,GDS PERFORMANCE AND DELIVERY,CAPITA RESOURCING LTD,3000053336,31308.47,Payment for interim Digital/IT specialists
Cabinet Office,CABINET OFFICE,13/10/14,CONTRACTORS & STAFF SUBSTITUTIONS,GDS OFFICE OF CHIEF TECHNOLOGY OFFICER,CAPITA RESOURCING LTD,3000053336,35749.16,�Payment for interim Digital/IT specialists
Cabinet Office,CABINET OFFICE,13/10/2014,CONTRACTORS & STAFF SUBSTITUTIONS,GDS PUBLISHING PLATFORM TECHNOLOGY,CAPITA RESOURCING LTD,3000053336,48138.06,Payment for interim staff working on GDS projects
Cabinet Office,CABINET OFFICE,13/10/2014,CONTRACTORS & STAFF SUBSTITUTIONS,GDS BUS DEV CONSULTANT AND STAFF COSTS,CAPITA RESOURCING LTD,3000053336,56714.52,Payment for interim staff working on GDS projects
Cabinet Office,CABINET OFFICE,13/10/2014,CONTRACTORS & STAFF SUBSTITUTIONS,GDS ID ASSURANCE,CAPITA RESOURCING LTD,3000053336,92616.28,Payment for interim staff working on GDS projects
Cabinet Office,CABINET OFFICE,13/10/2014,OTHER IS IT COSTS VAT RECOV,GDS TRANSFORMATION,VALTECH LTD,3000053322,140797.50,Managed services towards the GDS transformation project
Cabinet Office,CABINET OFFICE,13/10/2014,OTHER IS IT COSTS VAT RECOV,CO IT SYSTEMS,E SYNERGY SOLUTIONS LTD,3000053321,192860.00,Payment for managed service for Cabinet Office IT system
Cabinet Office,CABINET OFFICE,14/10/14,CONTRACTORS & STAFF SUBSTITUTIONS,GDS TRANSFORMATION,CAPITA BUSINESS SERVICES LTD,3000053369,38027.96,Payment for interim staff working on GDS projects
Cabinet Office,CABINET OFFICE,15/10/14,CONTRACTORS & STAFF SUBSTITUTIONS,GDS TRANSFORMATION,CAPITA RESOURCING LTD,3000053436,30864.12,Payment for interim staff working on GDS projects
Cabinet Office,CABINET OFFICE,15/10/14,CONTRACTORS & STAFF SUBSTITUTIONS,PUBLIC SERVICES NETWORK,CAPITA RESOURCING LTD,3000053436,44995.20,�Payment for interim Digital/IT specialists
Cabinet Office,CABINET OFFICE,15/10/2014,CONTRACTORS & STAFF SUBSTITUTIONS,GDS BUS DEV CONSULTANT AND STAFF COSTS,CAPITA RESOURCING LTD,3000053436,90832.06,Payment for interim staff working on GDS projects
Cabinet Office,CABINET OFFICE,15/10/2014,CONTRACTORS & STAFF SUBSTITUTIONS,GDS PUBLISHING PLATFORM TECHNOLOGY,CAPITA RESOURCING LTD,3000053436,95575.56,Payment for interim staff working on GDS projects
Cabinet Office,CABINET OFFICE,15/10/2014,OTHER IS IT COSTS VAT RECOV,GDS PUBLISHING PLATFORM TECHNOLOGY,DEVONSHIRE APPOINTMENTS LTD,3000053423,133461.69,Managed Services for GOV.UK
Cabinet Office,CABINET OFFICE,16/10/14,CONTRACTORS & STAFF SUBSTITUTIONS,GDS BUS DEV CONSULTANT AND STAFF COSTS,CAPITA RESOURCING LTD,3000053456,26938.94,�Payment for interim Digital/IT specialists
Cabinet Office,CABINET OFFICE,16/10/14,CONTRACTORS & STAFF SUBSTITUTIONS,GDS ID ASSURANCE,CAPITA RESOURCING LTD,3000053456,"32,006.95",�Payment for interim Digital/IT specialists
Cabinet Office,CABINET OFFICE,16/10/14,CONTRACTORS & STAFF SUBSTITUTIONS,PUBLIC SERVICES NETWORK,CAPITA RESOURCING LTD,3000053456,39015.77,�Payment for interim Digital/IT specialists
Cabinet Office,CABINET OFFICE,16/10/2014,CONTRACTORS & STAFF SUBSTITUTIONS,GDS PUBLISHING PLATFORM TECHNOLOGY,CAPITA RESOURCING LTD,3000053456,57148.41,Payment for interim staff working on GDS projects
Cabinet Office,CABINET OFFICE,17/10/14,CONTRACTORS & STAFF SUBSTITUTIONS,G CLOUD,CAPITA RESOURCING LTD,3000053522,34279.49,�Payment for interim Digital/IT specialists
Cabinet Office,CABINET OFFICE,17/10/14,OTHER IS IT COSTS VAT RECOV,G CLOUD,PARITY RESOURCES LTD,3000053554,34840.00,�Payment for interim Digital/IT specialists
Cabinet Office,CABINET OFFICE,17/10/2014,ADDITIONS IT HARDWARE,CO IT SYSTEMS CAPITAL,TRUSTMARQUE SOLUTIONS LTD,3000053529,58512.10,License fees for 905 software licenses  
Cabinet Office,CABINET OFFICE,20/10/2014,CONTRACTORS & STAFF SUBSTITUTIONS,PUBLIC SERVICES NETWORK,CAPITA RESOURCING LTD,3000053582,49654.56,Payment for interim staff working on GDS projects
Cabinet Office,CABINET OFFICE,20/10/2014,CONTRACTORS & STAFF SUBSTITUTIONS,GDS TRANSFORMATION,CAPITA RESOURCING LTD,3000053582,52008.76,Payment for interim staff working on GDS projects
Cabinet Office,CABINET OFFICE,20/10/2014,OTHER IS IT COSTS VAT RECOV, GDS TRANSFORMATION ,WTG TECHNOLOGIES LTD,3000053570,57890.00,Managed services for the GDS transformation project
Cabinet Office,CABINET OFFICE,20/10/2014,OTHER IS IT COSTS VAT RECOV,GDS ID ASSURANCE,THOUGHTWORKS LTD,3000053592,322910.00,Payment for interim staff working on GDS projects
Cabinet Office,CABINET OFFICE,23/10/14,CONTRACTORS & STAFF SUBSTITUTIONS,GDS ID ASSURANCE,CAPITA RESOURCING LTD,3000053702,30145.42,Payment for interim Digital/IT specialists
Cabinet Office,CABINET OFFICE,23/10/14,CONTRACTORS & STAFF SUBSTITUTIONS,GDS PERFORMANCE AND DELIVERY,CAPITA RESOURCING LTD,3000053701,37129.60,Payment for interim Digital/IT specialists
Cabinet Office,CABINET OFFICE,23/10/14,OTHER IS IT COSTS VAT RECOV,G CLOUD,6POINT6 LTD,3000053676,46721.00,Managed service for the G-cloud
Cabinet Office,CABINET OFFICE,23/10/2014,CONTRACTORS & STAFF SUBSTITUTIONS,GDS OFFICE OF CHIEF TECHNOLOGY OFFICER,CAPITA RESOURCING LTD,3000053701,48158.59,Payment for interim staff working on GDS projects
Cabinet Office,CABINET OFFICE,23/10/2014,OTHER IS IT COSTS VAT RECOV,GDS ID ASSURANCE,THOUGHTWORKS LTD,3000053661,262502.50,IT costs for building identity assurance hub
Cabinet Office,CABINET OFFICE,24/10/2014,OTHER IS IT COSTS VAT RECOV,CO IT SYSTEMS,E SYNERGY SOLUTIONS LTD,3000053732,115327.50,IT costs for building identity assurance hub
Cabinet Office,CABINET OFFICE,27/10/2014,OTHER IS IT COSTS VAT RECOV,GDS ID ASSURANCE,CESG,3000053816,250000.00,Compliance testing of identity assurance hub
Cabinet Office,CABINET OFFICE,28/10/2014,OTHER IS IT COSTS VAT RECOV,CO IT SYSTEMS,VIGLEN LTD,3000053851,741734.60,IT costs for building identity assurance hub
Cabinet Office,CABINET OFFICE,29/10/2014,OTHER IS IT COSTS VAT RECOV,PUBLIC SERVICES NETWORK,TRUSTIS,3000053899,51020.00,IT services for the Public Services Network
Cabinet Office,CABINET OFFICE,30/10/2014,NON PRIME PROPERTY COSTS,GDS BUSINESS TECHNOLOGY,FOOD STANDARDS AGENCY,3000053957,101719.05,Rent for accommodation
Cabinet Office,CABINET OFFICE,07/10/14,NON PRIME PROPERTY COSTS,GPU RESIDUAL ESTATE ADMIN,CBGA ROBSON LLP,1001104,25219.20,Asset management support concerning residual Cabinet Office estate 
Cabinet Office,CABINET OFFICE,07/10/2014,GRANT FUND MANAGEMENT VAT RECOVERABLE,GPU POLICY AND STRATEGY,LOCAL GOVERNMENT ASSOCIATION,3000053153,95548.65,Administration of grants to local authorities under the One Public Estate programme 
Cabinet Office,CABINET OFFICE,14/10/14,CONTRACTORS & STAFF SUBSTITUTIONS,GPU POLICY AND STRATEGY ADMIN,CAPGEMINI UK PLC,3000053401,39948.60,The Way We Work programme costs
Cabinet Office,CABINET OFFICE,15/10/14,OTHER IS IT COSTS VAT RECOV,GPU POLICY AND STRATEGY ADMIN,CORPORATE DOCUMENT SERVICES LTD,3000053450,44079.15,Support and development of ePIMS
Cabinet Office,CABINET OFFICE,27/10/14,OTHER IS IT COSTS VAT RECOV,GPU POLICY AND STRATEGY ADMIN,CORPORATE DOCUMENT SERVICES LTD,3000053831,30000.00,National property controls integration into ePIMS
Cabinet Office,CABINET OFFICE,06/10/2014,SERVICE PAYMENTS,DPM RESEARCH AND ANALYSIS,DEPARTMENT FOR EDUCATION,3000053091,60000.00,Social Mobility & Child Poverty Commission funding 
Cabinet Office,CABINET OFFICE,07/10/14,OTHER LEGAL FEES,COUNSEL,TREASURY SOLICITOR TSOL,3000053162,35453.08,Legal services 
Cabinet Office,CABINET OFFICE,23/10/2014,STATIONERY/ PUBLICATIONS/IT CONSUMABLES,COUNSEL,LEXIS NEXIS BUTTERWORTHS,3000053708,58630.16,Legal publications costs 
Cabinet Office,CABINET OFFICE,27/10/2014,INSIGNIA OVERHEAD COSTS,HONOURS AND DIGNITIES,TREASURER TO THE QUEEN,3000053817,68244.00,Central Chancery charges for administration of Honours 
Cabinet Office,CABINET OFFICE,16/10/14,OTHER TRAVEL COSTS,EUROPEAN AND GLOBAL ISSUES SECREATARIAT,HOGG ROBINSON TRAVEL LTD,3000053466,36201.91,Official travel  
Cabinet Office,CABINET OFFICE,10/10/2014,TELECOM RENTALS,CCS RESILIENT TELECOMMUNICATIONS,MINISTRY OF DEFENCE,3000053282,88457.92,High Integrity Telecommunications System costs
Cabinet Office,CABINET OFFICE,10/10/2014,TELECOM SECURITY SERVICES,CCS RESILIENT TELECOMMUNICATIONS,MINISTRY OF DEFENCE,3000053282,528898.96,High Integrity Telecommunications System costs 
Cabinet Office,CABINET OFFICE,20/10/14,OTHER IS IT COSTS VAT RECOV,CCS RESILIENT TELECOMMUNICATIONS,CORPORATE DOCUMENT SERVICES LTD,3000053594,30000.00,�IT support services 
Cabinet Office,CABINET OFFICE,28/10/14,SOFTWARE LEASE/LICENSE,ISA 2 Prog,CYBER SECURITY CHALLENGE UK LTD,3000053844,45000.00,Sponsorship of Government Cyber Security Challenge
Cabinet Office,CABINET OFFICE,28/10/2014,STAFF TRAINING,CO CONTRIBUTION - ISS PROJECTS,THE NATIONAL ARCHIVES 9014,3000053883,106161.61,Information Assurance and Cyber Security Engagement Programme costs 
Cabinet Office,CABINET OFFICE,29/10/2014,OTHER IS IT COSTS VAT RECOV,IS INFORMATION AND CAPABILITIES,GOVERNMENT COMMUNICATIONS BUREAU,3000053922,748105.00,IT security costs 
Cabinet Office,CABINET OFFICE,13/10/2014,OTHER IS IT COSTS VAT RECOV,CERT,SUREVINE LTD,3000053325,85677.35,IT systems protective monitoring 
Cabinet Office,CABINET OFFICE,16/10/2014,OTHER IS IT COSTS VAT RECOV,CERT,SUREVINE LTD,3000053506,54764.20,IT support services 
Cabinet Office,CABINET OFFICE,23/10/2014,OTHER IS IT COSTS VAT RECOV,CERT,RISUAL LTD,3000053684,132582.00,IT support services 
Cabinet Office,CABINET OFFICE,29/10/14,OTHER IS IT COSTS VAT RECOV,ISC SECRETARIAT,GOVERNMENT COMMUNICATIONS BUREAU,3000053922,40000.00,IT support services 
Cabinet Office,CABINET OFFICE,06/10/2014,TELECOM RENTALS,WBT PROGRAM OFFICE,FOOD STANDARDS AGENCY,3000053111,148638.00,"Audio visual equipment installation, including VOIP and video conferencing  "
Cabinet Office,CABINET OFFICE,24/10/2014,OTHER IS IT COSTS VAT RECOV,BUSINESS MANAGEMENT TEAM,MISCO COMPUTER SUPPLIES LTD,3000053764,31107.21,IT hardware 
Cabinet Office,CABINET OFFICE,01/10/14,STAFF HEALTHCARE AND COUNSELLING SERVICES,HR RESIDUAL,MINISTRY OF JUSTICE,3000053021,29167.00,"Support services relating to a variety of staff issues (legal employment, poor performance, grievance etc)"
Cabinet Office,CABINET OFFICE,17/10/14,CHILDCARE VOUCHERS,HR REWARD AND EMPLOYEE RELATIONS TEAM,ACCOR TA EDENRED,1001110,27246.98,Staff childcare vouchers
Cabinet Office,CABINET OFFICE,30/10/14,STAFF RELATED COSTS,HR RESOURCING TEAM,KORN FERRY INTERNATIONAL LTD,3000053946,30000.00,Executive search and recruitment advertising charges
Cabinet Office,CABINET OFFICE,30/10/14,STAFF RELATED COSTS,FAST STREAM COSTS CS RESOURCING,HMRC,3000053932,41000.00,Cabinet Office contribution to European Fast Stream
Cabinet Office,CABINET OFFICE,01/10/14,CONSULTANTS VAT RECOVERABLE,ROYAL MAIL SERVICE PENSIONS,COSAN CONSULTING LTD,3000052984,29899.28,Royal Mail Service Pensions development and support
Cabinet Office,CABINET OFFICE,06/10/2014,PENSIONS PAYROLL CONTRACTOR - FIXED FEE,SME PENSIONS PROGRAMME,MYCSP LTD,3000053108,694070.00,Civil Service pension administration costs
Cabinet Office,CABINET OFFICE,07/10/2014,PENSIONS PAYROLL CONTRACTOR - FIXED FEE,SME CONTRACT MANAGMENT LEAD,MYCSP LTD,3000053150,2944547.41,Civil Service pension administration costs
Cabinet Office,CABINET OFFICE,09/10/2014,PENSIONS PAYROLL CONTRACTOR - FIXED FEE,ROYAL MAIL SERVICE PENSIONS,ROYAL MAIL GROUP LTD,3000053238,394963.75,Royal Mail Statutory Pension Scheme administration costs 
Cabinet Office,CABINET OFFICE,23/10/2014,PENSIONS ADMINISTRATION - ADDITIONAL COSTS (MyCSP),SME CONTRACT MANAGMENT LEAD,MYCSP LTD,3000053693,157170.00,MyCSP Programme costs 
Cabinet Office,CABINET OFFICE,31/10/2014,PENSIONS ADMINISTRATION - ADDITIONAL COSTS (MyCSP),SME GOVERNANCE LEAD,MYCSP LTD,3000053988,90515.75,MyCSP website development costs 
Cabinet Office,CABINET OFFICE,31/10/2014,PENSIONS PAYROLL CONTRACTOR - FIXED FEE,SME CONTRACT MANAGMENT LEAD,MYCSP LTD,3000053988,2944547.41,Civil Service pension administration costs
Cabinet Office,CABINET OFFICE,07/10/14,NON PRIME UTILITIES,FEM MISC,BOUYGUES E&S FM UK LTD,3000053154,41568.78,Facilities Management Services 
Cabinet Office,CABINET OFFICE,07/10/2014,FM CONTRACT FIXED COSTS,TOTAL FM CONTRACT,BOUYGUES E&S FM UK LTD,3000053154,547066.58,Facilities Management Services 
Cabinet Office,CABINET OFFICE,13/10/14,STATIONERY/ PUBLICATIONS/IT CONSUMABLES,CABINET OFFICE REPROGRAPHICS (EX GCDA),RICOH UK LTD,3000053356,35525.21,Reprographic Services
Cabinet Office,CABINET OFFICE,14/10/2014,FM CONTRACT FIXED COSTS,ROSEBERY COURT FM CONTRACT,MITIE BUSINESS SERVICES LTD,3000053397,49299.23,Estate Services 
Cabinet Office,CABINET OFFICE,14/10/2014,FM CONTRACT VARIABLE,ROSEBERY COURT FM CONTRACT,MITIE BUSINESS SERVICES LTD,3000053397,119529.26,Estate services 
Cabinet Office,CABINET OFFICE,23/10/14,FM CONTRACT VARIABLE,TOTAL FM CONTRACT,BOUYGUES E&S FM UK LTD,3000053699,28291.61,Facilities Management Services 
Cabinet Office,CABINET OFFICE,23/10/2014,SERVICE CHARGES,DOVER HOUSE,SCOTLAND OFFICE,3000053664,84412.23,Service Charge for accommodation 
Cabinet Office,CABINET OFFICE,24/10/2014,DILAPIDATIONS - CASH PAID (RDEL),ROSEBERY COURT FM CONTRACT,BOUYGUES E&S FM UK LTD,3000053744,98535.58,Estate services 
Cabinet Office,CABINET OFFICE,03/10/14,FM CONTRACT FIXED COSTS,ADMIRALTY ARCH,BOUYGUES E&S FM UK LTD,3000053089,46118.44,Facilities Management Services 
Cabinet Office,CABINET OFFICE,08/10/14,FM CONTRACT FIXED COSTS,ADMIRALTY ARCH,BOUYGUES E&S FM UK LTD,3000053199,46118.44,Facilities Management Services 
Cabinet Office,CABINET OFFICE,08/10/2014,SERVICE PAYMENTS,STERIA SHARED SERVICES,SHARED SERVICES CONNECTED LTD,3000053191,131760.85,Shared services charges 
Cabinet Office,CABINET OFFICE,13/10/2014,LEGAL ADVICE FROM TSOL,CENTRAL LEGAL COSTS,TREASURY SOLICITOR TSOL,3000053337,182646.00,Legal services 
Cabinet Office,CABINET OFFICE,15/10/14,STAFF RELATED COSTS,CENTRAL LEGAL COSTS,HMRC,3000484,32885.82,Tax and National Insurance payments  
Cabinet Office,CABINET OFFICE,20/10/2014,LEGAL ADVICE FROM TSOL,CENTRAL LEGAL COSTS,TREASURY SOLICITOR TSOL,3000053584,257997.86,Legal services 
Cabinet Office,CABINET OFFICE,21/10/2014,LEGAL ADVICE FROM TSOL,CENTRAL LEGAL COSTS,TREASURY SOLICITOR TSOL,3000053626,58531.20,Legal services 
Cabinet Office,CABINET OFFICE,21/10/2014,STAFF RELATED COSTS,CENTRAL LEGAL COSTS,HMRC,3000485,70916.02,Tax and National Insurance payments 
Cabinet Office,CABINET OFFICE,27/10/2014,SUNNINGDALE PARK PFI SERVICE CHARGES,NSG TRANSITION COSTS,DE VERE VENUES GROUP LTD,3000053788,528916.94,PFI Service Charge for Sunningdale 
Cabinet Office,CABINET OFFICE,07/10/2014,RESEARCH AND DEVELOPMENT (VAT RECOVERABLE),ELECTIONS AND DEMOCRACY DIVISION,LAW COMMISSION,3000053134,31250,Review and consolidation of electoral legislation
Cabinet Office,CABINET OFFICE,30/10/2014,RESEARCH AND DEVELOPMENT (VAT RECOVERABLE),BOUNDARY COMMISSION OF ENGLAND,ORDNANCE SURVEY,3000053954,141000.00,Creation of Polling District dataset for England.  
Cabinet Office,CABINET OFFICE,03/10/2014,PUBLICITY PRODUCTION COST,ERTP ERO CONFIRMATION & VERIFICATION,THE LEAFLET COMPANY LTD,3000053083,159623.00,Communications support
Cabinet Office,CABINET OFFICE,03/10/2014,PUBLICITY PRODUCTION COST,ERTP ERO CONFIRMATION & VERIFICATION,M4C,3000053082,372324.79,Communications support 
Cabinet Office,CABINET OFFICE,07/10/2014,PROFESSIONAL SERVICES NON VAT RECOVERABLE,ERTP ERO CONFIRMATION & VERIFICATION,IPSOS MORI LTD,3000053124,157380.00,Market research costs 
Cabinet Office,CABINET OFFICE,08/10/2014,GRANT FUND MANAGEMENT,ERTP ERO CONFIRMATION & VERIFICATION,DEPARTMENT FOR COMMUNITIES AND LOCAL GOVERNMENT,3000053200,130000.00,Electoral Claims Limit costs
Cabinet Office,CABINET OFFICE,15/10/14,GRANT FUND MANAGEMENT,ERTP ERO CONFIRMATION & VERIFICATION,DEPARTMENT FOR COMMUNITIES AND LOCAL GOVERNMENT,3000053433,26000.00,Returning Officer costs for the 2014 European Parliamentary election
Cabinet Office,CABINET OFFICE,17/10/2014,CONSULTANTS VAT RECOVERABLE,ERTP ERO CONFIRMATION & VERIFICATION,IPSOS MORI LTD,3000053545,61800.00,Market reseach costs 
Cabinet Office,CABINET OFFICE,01/10/2014,SOFTWARE LEASE/LICENSE,ERTP ERO DIGITAL,HALAROSE LTD,3000053013,75705.00,Delivery of additional change requests to the Electoral Management System post the launch of Individual Electoral Registration
Cabinet Office,CABINET OFFICE,02/10/2014,OTHER IS IT COSTS VAT RECOV,ERTP ERO DIGITAL,SPECIALIST COMPUTER CENTRE PLC,3000053062,65783.92,Delivery of the Digital capability that supports the business change from household to Individual Electoral Registration through the government framework 
Cabinet Office,CABINET OFFICE,07/10/2014,ADDITIONS -AUC IT FEES NON VAT REC,ERTP ERO DIGITAL,RENFREWSHIRE VALUATION JOINT BOARD,3000053125,64920.00,Individual Electoral Registration Digital service upgrade cost
Cabinet Office,CABINET OFFICE,31/10/2014,OTHER IS IT COSTS VAT RECOV,ERTP IER LIVE SERVICE,FCO SERVICES,3000053999,220112.00,Hosting fees and associated costs for the Individual Electoral Registration Digital Live Service
Cabinet Office,CABINET OFFICE,01/10/2014,MANAGEMENT CONFERENCES,MANAGEMENT AND CENTRAL SUPPORT,DODS PARLIAMENTARY COMMUNICATIONS LTD,3000053010,99181.84,Event management of Civil Service Live 2014 
Cabinet Office,CABINET OFFICE,07/10/14,PUBLICITY ADVERTISING MEDIA,GREAT CAMPAIGN PROGRAMME,RADLEY YELDAR LTD,3000053151,36611.50,GREAT Campaign
Cabinet Office,CABINET OFFICE,28/10/14,MANAGEMENT CONFERENCES,MANAGEMENT AND CENTRAL SUPPORT,FOREIGN & COMMONWEALTH OFFICE,3000053884,34453.19,NATO Summit 2014 event costs
Cabinet Office,CABINET OFFICE,09/10/14,PROFESSIONAL SERVICES NON VAT RECOVERABLE,CIVIL SERVICE COMMISSION,KPMG,3000053246,40800.00,Compliance Monitoring contract charges: auditing adherence to recruitment guidelines in the Civil Service and Public Bodies
Cabinet Office,CABINET OFFICE,01/10/2014,GRANT IN AID PRIVATE SECTOR,NCS IMB,NCS TRUST CIC,3000052996,2884085.00,Funding for the National Citizen Service 
Cabinet Office,CABINET OFFICE,07/10/14,RESOURCE GRANTS PRIVATE SECTOR,OPEN DATA PROGRAMME,OPEN DATA INSTITUTE,3000053138,28800.00,Development of materials and training to enable civil servants to attend open data training courses [see query] 
Cabinet Office,CABINET OFFICE,07/10/2014,RESOURCE GRANTS PRIVATE SECTOR,YOUTH POLICY,NCVYS,3000053164,158175.00,"Grant to develop a youth sector impact measurement initiative, the Centre for Youth Impact, which will deliver an online evidence and resource hub and capacity-building training for youth services"
Cabinet Office,CABINET OFFICE,07/10/2014,RESOURCE GRANTS PRIVATE SECTOR,COMMUNITY FIRST,COMMUNITY DEVELOPMENT FOUNDATION,3000053179,2498905.00,Neighbourhood Matched Fund payment
Cabinet Office,CABINET OFFICE,08/10/14,GRANT FUND MANAGEMENT VAT RECOVERABLE,OCS SOCIAL ACTION PROGRAMME TEAM,COMMUNITY DEVELOPMENT FOUNDATION,3000053217,30365.60,Management of the Endowment Match Challenge
Cabinet Office,CABINET OFFICE,10/10/14,RESOURCE GRANTS PRIVATE SECTOR,YOUTH POLICY,BRITISH YOUTH COUNCIL.,3000053300,28502.00,Support grant for youth participation in public decision making
Cabinet Office,CABINET OFFICE,10/10/2014,RESOURCE GRANTS PRIVATE SECTOR,YOUTH POLICY,KIDS COMPANY,3000053301,1000000.00,"Improving Outcomes for Children, Young People and Families grant funding"
Cabinet Office,CABINET OFFICE,13/10/2014,RESEARCH AND DEVELOPMENT (VAT RECOVERABLE),A & I  PROGRAMME EXPENDITURE,TNS UK LTD,3000053334,55492.10,Community Life Survey cost
Cabinet Office,CABINET OFFICE,14/10/14,RESEARCH AND DEVELOPMENT (VAT RECOVERABLE),A & I  PROGRAMME EXPENDITURE,TNS UK LTD,3000053388,38844.47,Community Life Survey cost
Cabinet Office,CABINET OFFICE,17/10/2014,RESOURCE GRANTS PRIVATE SECTOR,PROGRAMME & STRATEGY OFFICE,THE TIM PARRY JOHNATHAN BALL FOUNDATION FOR PEACE,3000053553,75000.00,Bringing together victims and survivors of terrorism grant funding 
Cabinet Office,CABINET OFFICE,20/10/2014,RESOURCE GRANTS PRIVATE SECTOR,CHARITABLE GIVING,RED TRUST,3000053569,107500.00,Transition of Do-It service to new supplier 
Cabinet Office,CABINET OFFICE,21/10/2014,OTHER IS IT COSTS VAT RECOV,GRANTS PORTAL,NCVO,3000053629,69481.75,Central Web Resource funding for the Voluntary Community and Social Enterprise sector.  
Cabinet Office,CABINET OFFICE,23/10/2014,RESOURCE GRANTS PRIVATE SECTOR,SOCIAL OUTCOMES FUND,ITS ALL ABOUT ME SCHEME LLP,3000053690,50000.00,Adoption of hard to place children programme costs 
Cabinet Office,CABINET OFFICE,23/10/2014,PROFESSIONAL ADVICE & OPINION VAT RECOVERABLE,ERG CIVIL SERVICE PEOPLE SURVEY,ORC INTERNATIONAL LIMITED,3000053698,109921.26,Delivery of Civil Service People Survey 2014 
Cabinet Office,CABINET OFFICE,24/10/2014,RESOURCE GRANTS PRIVATE SECTOR,YOUTH CENTRE FOR SOCIAL ACTION,EDUCATION ENDOWMENT FOUNDATION,3000053728,181848.50,Youth United and Children's University funding to participate in the Youth Social Action Trials
Cabinet Office,CABINET OFFICE,27/10/14,RESEARCH AND DEVELOPMENT (VAT RECOVERABLE),ERG CONTESTABLE POLICY FUND,DWP,3000053812,35000.00,Matched funding for the Contestable Policy Fund project with RAND Europe 
Cabinet Office,CABINET OFFICE,30/10/2014,RESOURCE GRANTS TO NDPB'S,TECHNICAL ASSISTANCE,BIG LOTTERY FUND SOCIAL INCUBATOR FUND,3000053953,1182939.00,Grant to support start-up ventures in the social investment market  
Cabinet Office,CABINET OFFICE,31/10/2014,RESOURCE GRANTS PRIVATE SECTOR,CHARITABLE GIVING,CITIZENSHIP FOUNDATION,3000054001,50000.00,Delivery of the Go-Givers programme in primary schools and of Giving Nation in secondary schools
Cabinet Office,CABINET OFFICE,31/10/2014,GRANT FUND MANAGEMENT VAT RECOVERABLE,COMMUNITY ORGANISERS,LOCALITY,3000054000,233599.00,Grant Fund Management charges for Community Organisers
Cabinet Office,CABINET OFFICE,29/10/2014,TELECOM RENTALS,ICT SERVICES,VODAFONE LTD,3000053903,60484.38,Mobile phone rental
Cabinet Office,Crown Commercial Service,01/10/2014,Maintenance & Repairs - IT,Enablement Projects,BravoSolution UK Ltd,PINDOH 40217,30000.00,Licences for spend analytics
Cabinet Office,Crown Commercial Service,01/10/2014,WSDS Maintenance & Repairs,Whitehall Standby Dist Systems,Cofely,PINDOH 40347,40700.21,Whitehall heating systems management
Cabinet Office,Crown Commercial Service,01/10/2014,Bravo Licence Costs,Enablement Projects,BravoSolution UK Ltd,PINDOH 40215,41650.00,Licences for spend analytics
Cabinet Office,Crown Commercial Service,01/10/2014,Bravo Licence Costs,Enablement Projects,BravoSolution UK Ltd,PINDOH 40219,41650.00,Licences for spend analytics
Cabinet Office,Crown Commercial Service,01/10/2014,Bravo Licence Costs,Enablement Projects,BravoSolution UK Ltd,PINDOH 40290,41650.00,Licences for spend analytics
Cabinet Office,Crown Commercial Service,01/10/2014,WDHS Maintenance & Repairs,Whitehall District Heating Systems,Cofely,PINDOH 40349,65230.11,Whitehall heating systems management
Cabinet Office,Crown Commercial Service,02/10/2014,Consultancy Fees (Advice),Contract Management,Bain & Company,PINDOH 40144,40000.00,Organisational Strategy Support
Cabinet Office,Crown Commercial Service,02/10/2014,Computer Hardware ,IT,MISCO COMPUTERS,PINDOH 40422,49588.00,IT hardware
Cabinet Office,Crown Commercial Service,02/10/2014,Legal Fees,Legal Services,Treasury Solicitors,PINDOH 40343,63625.70,Legal services 
Cabinet Office,Crown Commercial Service,07/10/2014,Consultancy Fees (Advice),Commercial Reform Team,Pricewaterhouse Coopers LLP,PINDOH 40274,98000.00,Commercial Reform Team Project
Cabinet Office,Crown Commercial Service,07/10/2014,Consultancy Fees (Advice),Commercial Reform Team,Pricewaterhouse Coopers LLP,PINDOH 39511,120065.00,Commercial Reform Team Project
